[Event "Titled Tuesday Blitz March 28 Early 2023"]
[White "Alinasab, Mobina"]
[Black "Lopez, Nelson M, Ii"]
[WhiteFideId "12528897"]
[BlackFideId "2027895"]
[WhiteElo "2141"]
[BlackElo "2402"]
[Result "1-0"]
[Round "04"]
[TimeControl "180+2"]
[Date "2023.03.28"]
[WhiteClock "0:00:07"]
[BlackClock "0:00:14"]

1. Nf3 {[%clk 0:03:00]}  Nc6 {[%clk 0:02:59]} 2. d4 {[%clk 0:03:00]}  d5 {[%clk 0:03:00]} 3. g3 {[%clk 0:02:57]}  Bf5 {[%clk 0:02:59]} 4. Bg2 {[%clk 0:02:57]}  h5 {[%clk 0:02:57]} 5. b3 {[%clk 0:02:49]}  h4 {[%clk 0:02:57]} 6. Nxh4 {[%clk 0:02:48]}  Rxh4 {[%clk 0:02:57]} 7. gxh4 {[%clk 0:02:49]}  e6 {[%clk 0:02:58]} 8. Bb2 {[%clk 0:02:45]}  Qxh4 {[%clk 0:02:58]} 9. Nd2 {[%clk 0:02:45]}  Nf6 {[%clk 0:02:54]} 10. Nf3 {[%clk 0:02:45]}  Qh5 {[%clk 0:02:53]} 11. a3 {[%clk 0:02:31]}  Bd6 {[%clk 0:02:52]} 12. c4 {[%clk 0:02:24]}  O-O-O {[%clk 0:02:41]} 13. c5 {[%clk 0:02:22]}  Bf4 {[%clk 0:02:37]} 14. e3 {[%clk 0:02:22]}  Bh6 {[%clk 0:02:37]} 15. b4 {[%clk 0:02:00]}  Ng4 {[%clk 0:02:22]} 16. Qd2 {[%clk 0:01:52]}  e5 {[%clk 0:02:14]} 17. dxe5 {[%clk 0:01:43]}  d4 {[%clk 0:01:50]} 18. Nxd4 {[%clk 0:01:42]}  Ngxe5 {[%clk 0:01:32]} 19. Qe2 {[%clk 0:00:57]}  Nd3+ {[%clk 0:01:08]} 20. Kf1 {[%clk 0:00:57]}  Qg6 {[%clk 0:00:31]} 21. Nxf5 {[%clk 0:00:42]}  Qxf5 {[%clk 0:00:32]} 22. Rd1 {[%clk 0:00:28]}  Nce5 {[%clk 0:00:31]} 23. Bxe5 {[%clk 0:00:25]}  Nxe5 {[%clk 0:00:31]} 24. Rxd8+ {[%clk 0:00:24]}  Kxd8 {[%clk 0:00:32]} 25. e4 {[%clk 0:00:20]}  Qf4 {[%clk 0:00:32]} 26. h3 {[%clk 0:00:17]}  Qc1+ {[%clk 0:00:26]} 27. Qe1 {[%clk 0:00:17]}  Qxa3 {[%clk 0:00:27]} 28. Kg1 {[%clk 0:00:16]}  Nd3 {[%clk 0:00:27]} 29. Qd1 {[%clk 0:00:15]}  Ke7 {[%clk 0:00:28]} 30. Bf1 {[%clk 0:00:13]}  Nxb4 {[%clk 0:00:27]} 31. Rh2 {[%clk 0:00:13]}  Nc6 {[%clk 0:00:23]} 32. Qd5 {[%clk 0:00:13]}  Qf3 {[%clk 0:00:20]} 33. Rg2 {[%clk 0:00:11]}  g6 {[%clk 0:00:19]} 34. Rg3 {[%clk 0:00:11]}  Qf6 {[%clk 0:00:18]} 35. Rd3 {[%clk 0:00:11]}  Kf8 {[%clk 0:00:17]} 36. Bg2 {[%clk 0:00:09]}  Bf4 {[%clk 0:00:17]} 37. e5 {[%clk 0:00:07]}  Bxe5 {[%clk 0:00:16]} 38. Rf3 {[%clk 0:00:07]}  Qe7 {[%clk 0:00:15]} 39. h4 {[%clk 0:00:06]}  Kg7 {[%clk 0:00:15]} 40. Bh3 {[%clk 0:00:06]}  Bf6 {[%clk 0:00:15]} 41. h5 {[%clk 0:00:06]}  gxh5 {[%clk 0:00:15]} 42. Qxh5 {[%clk 0:00:05]}  Ne5 {[%clk 0:00:16]} 43. Rg3+ {[%clk 0:00:05]}  Ng6 {[%clk 0:00:16]} 44. Bf5 {[%clk 0:00:05]}  Qe1+ {[%clk 0:00:16]} 45. Kg2 {[%clk 0:00:05]}  Qe7 {[%clk 0:00:17]} 46. Bxg6 {[%clk 0:00:05]}  Be5 {[%clk 0:00:03]} 47. Qh7+ {[%clk 0:00:04]}  Kf6 {[%clk 0:00:04]} 48. Rf3+ {[%clk 0:00:03]}  Ke6 {[%clk 0:00:04]} 49. Bxf7+ {[%clk 0:00:02]}  Kd7 {[%clk 0:00:04]} 50. Qf5+ {[%clk 0:00:02]}  Kc6 {[%clk 0:00:04]} 51. Be6 {[%clk 0:00:03]}  Qxc5 {[%clk 0:00:04]} 52. Qg4 {[%clk 0:00:04]}  Bd4 {[%clk 0:00:04]} 53. Qe4+ {[%clk 0:00:04]}  Kb5 {[%clk 0:00:05]} 54. Rb3+ {[%clk 0:00:04]}  Ka6 {[%clk 0:00:04]} 55. Qd3+ {[%clk 0:00:04]}  b5 {[%clk 0:00:04]} 56. Bc8+ {[%clk 0:00:04]}  Kb6 {[%clk 0:00:05]} 57. Qg6+ {[%clk 0:00:04]}  c6 {[%clk 0:00:05]} 58. Qg3 {[%clk 0:00:04]}  Qd5+ {[%clk 0:00:05]} 59. Kg1 {[%clk 0:00:03]}  Qc5 {[%clk 0:00:05]} 60. Bg4 {[%clk 0:00:02]}  Qc1+ {[%clk 0:00:05]} 61. Kg2 {[%clk 0:00:03]}  Qc5 {[%clk 0:00:06]} 62. Qf3 {[%clk 0:00:03]}  a5 {[%clk 0:00:07]} 63. Rd3 {[%clk 0:00:03]}  a4 {[%clk 0:00:07]} 64. Qe4 {[%clk 0:00:04]}  Be5 {[%clk 0:00:07]} 65. Rf3 {[%clk 0:00:04]}  Bd6 {[%clk 0:00:08]} 66. Rf5 {[%clk 0:00:04]}  a3 {[%clk 0:00:09]} 67. Rxc5 {[%clk 0:00:03]}  Bxc5 {[%clk 0:00:09]} 68. Qb1 {[%clk 0:00:03]}  b4 {[%clk 0:00:10]} 69. Qa2 {[%clk 0:00:04]}  Kb5 {[%clk 0:00:11]} 70. Bd1 {[%clk 0:00:04]}  Bd4 {[%clk 0:00:11]} 71. Bb3 {[%clk 0:00:05]}  c5 {[%clk 0:00:12]} 72. Bc4+ {[%clk 0:00:06]}  Kc6 {[%clk 0:00:12]} 73. Qb3 {[%clk 0:00:07]}  Kd6 {[%clk 0:00:13]} 74. Kg3 {[%clk 0:00:07]}  Ke5 {[%clk 0:00:14]} 75. f4+ {[%clk 0:00:07]}  Ke4 {[%clk 0:00:14]} 76. Qd3# {[%clk 0:00:07]} 1-0


[Site "https://www.chess.com"]

[Event "Titled Tuesday Blitz March 28 Early 2023"]
[White "Shkuran, Danylo"]
[Black "Arencibia Monduy, Antonio"]
[WhiteFideId "14106248"]
[BlackFideId "3507939"]
[WhiteElo "2427"]
[BlackElo "2514"]
[Result "0-1"]
[Round "04"]
[TimeControl "180+2"]
[Date "2023.03.28"]
[WhiteClock "0:00:01"]
[BlackClock "0:00:14"]

1. d4 {[%clk 0:03:00]}  Nf6 {[%clk 0:02:59]} 2. c4 {[%clk 0:02:58]}  e6 {[%clk 0:02:59]} 3. Nf3 {[%clk 0:02:57]}  b6 {[%clk 0:02:58]} 4. g3 {[%clk 0:02:57]}  Bb7 {[%clk 0:02:58]} 5. Bg2 {[%clk 0:02:57]}  Be7 {[%clk 0:02:58]} 6. O-O {[%clk 0:02:57]}  O-O {[%clk 0:02:59]} 7. b3 {[%clk 0:02:57]}  d6 {[%clk 0:02:48]} 8. Bb2 {[%clk 0:02:57]}  Nbd7 {[%clk 0:02:47]} 9. Nbd2 {[%clk 0:02:54]}  d5 {[%clk 0:02:21]} 10. cxd5 {[%clk 0:02:50]}  Bxd5 {[%clk 0:02:15]} 11. Qc2 {[%clk 0:02:33]}  c5 {[%clk 0:02:07]} 12. e4 {[%clk 0:02:32]}  Bb7 {[%clk 0:02:07]} 13. Rfe1 {[%clk 0:02:22]}  cxd4 {[%clk 0:02:07]} 14. Bxd4 {[%clk 0:02:14]}  Rc8 {[%clk 0:02:07]} 15. Qb2 {[%clk 0:02:12]}  Nc5 {[%clk 0:02:07]} 16. Bxc5 {[%clk 0:02:01]}  Bxc5 {[%clk 0:02:05]} 17. Rad1 {[%clk 0:01:58]}  Qe7 {[%clk 0:01:59]} 18. h3 {[%clk 0:01:49]}  Rfd8 {[%clk 0:01:34]} 19. e5 {[%clk 0:01:41]}  Nd5 {[%clk 0:01:30]} 20. Nc4 {[%clk 0:01:32]}  Bb4 {[%clk 0:01:27]} 21. Re4 {[%clk 0:01:06]}  b5 {[%clk 0:01:05]} 22. Nd6 {[%clk 0:01:00]}  Bxd6 {[%clk 0:00:58]} 23. exd6 {[%clk 0:01:01]}  Qxd6 {[%clk 0:00:56]} 24. Rg4 {[%clk 0:00:54]}  Qf8 {[%clk 0:00:48]} 25. Ng5 {[%clk 0:00:45]}  h6 {[%clk 0:00:44]} 26. Ne4 {[%clk 0:00:36]}  f5 {[%clk 0:00:41]} 27. Rg6 {[%clk 0:00:21]}  fxe4 {[%clk 0:00:39]} 28. Bxe4 {[%clk 0:00:21]}  Qf7 {[%clk 0:00:25]} 29. Rd3 {[%clk 0:00:16]}  Nf6 {[%clk 0:00:25]} 30. Bxb7 {[%clk 0:00:16]}  Qxg6 {[%clk 0:00:23]} 31. Re3 {[%clk 0:00:05]}  Rb8 {[%clk 0:00:19]} 32. Bc6 {[%clk 0:00:04]}  Kh8 {[%clk 0:00:19]} 33. Qe5 {[%clk 0:00:04]}  Qf7 {[%clk 0:00:17]} 34. h4 {[%clk 0:00:04]}  Nd5 {[%clk 0:00:17]} 35. Re4 {[%clk 0:00:02]}  Qf6 {[%clk 0:00:17]} 36. Qc7 {[%clk 0:00:01]}  Rbc8 {[%clk 0:00:16]} 37. Qb7 {[%clk 0:00:01]}  Rc7 {[%clk 0:00:15]} 38. Qa6 {[%clk 0:00:01]}  Rd6 {[%clk 0:00:14]} 0-1


[Site "https://www.chess.com"]

[Event "Titled Tuesday Blitz March 28 Early 2023"]
[White "Ronka, Erik"]
[Black "Perez Rodriguez, Jennifer"]
[WhiteFideId "505080"]
[BlackFideId "3507831"]
[WhiteElo "2264"]
[BlackElo "2170"]
[Result "0-1"]
[Round "04"]
[TimeControl "180+2"]
[Date "2023.03.28"]
[WhiteClock "0:00:02"]
[BlackClock "0:00:14"]

1. e4 {[%clk 0:03:00]}  e5 {[%clk 0:02:59]} 2. Nf3 {[%clk 0:03:00]}  Nc6 {[%clk 0:02:59]} 3. Bb5 {[%clk 0:03:00]}  f5 {[%clk 0:02:58]} 4. d3 {[%clk 0:02:52]}  fxe4 {[%clk 0:02:58]} 5. dxe4 {[%clk 0:02:52]}  Nf6 {[%clk 0:02:59]} 6. O-O {[%clk 0:02:52]}  d6 {[%clk 0:02:59]} 7. Bc4 {[%clk 0:02:51]}  Na5 {[%clk 0:02:57]} 8. Be2 {[%clk 0:02:49]}  Be7 {[%clk 0:02:57]} 9. b4 {[%clk 0:02:48]}  Nc6 {[%clk 0:02:56]} 10. b5 {[%clk 0:02:44]}  Nb8 {[%clk 0:02:55]} 11. Bc4 {[%clk 0:02:44]}  Bg4 {[%clk 0:02:54]} 12. Nbd2 {[%clk 0:02:41]}  Nbd7 {[%clk 0:02:51]} 13. h3 {[%clk 0:02:36]}  Bh5 {[%clk 0:02:50]} 14. g4 {[%clk 0:02:15]}  Nxg4 {[%clk 0:02:03]} 15. hxg4 {[%clk 0:02:14]}  Bxg4 {[%clk 0:02:03]} 16. Be2 {[%clk 0:01:56]}  Nc5 {[%clk 0:01:58]} 17. Nh2 {[%clk 0:01:55]}  Bh3 {[%clk 0:01:56]} 18. Re1 {[%clk 0:01:43]}  O-O {[%clk 0:01:56]} 19. Bg4 {[%clk 0:01:39]}  Bxg4 {[%clk 0:01:52]} 20. Qxg4 {[%clk 0:01:40]}  Rf4 {[%clk 0:01:52]} 21. Qg2 {[%clk 0:01:37]}  Qd7 {[%clk 0:01:43]} 22. Ndf1 {[%clk 0:01:35]}  Rf7 {[%clk 0:01:40]} 23. c4 {[%clk 0:01:32]}  Raf8 {[%clk 0:01:36]} 24. Be3 {[%clk 0:01:29]}  Nd3 {[%clk 0:01:36]} 25. Red1 {[%clk 0:01:29]}  Nf4 {[%clk 0:01:36]} 26. Bxf4 {[%clk 0:01:29]}  Rxf4 {[%clk 0:01:36]} 27. f3 {[%clk 0:01:23]}  Qe6 {[%clk 0:01:33]} 28. Rac1 {[%clk 0:01:18]}  R4f6 {[%clk 0:01:20]} 29. Kh1 {[%clk 0:01:17]}  Rg6 {[%clk 0:01:20]} 30. Qf2 {[%clk 0:01:11]}  Qh3 {[%clk 0:01:16]} 31. Ne3 {[%clk 0:00:50]}  Bg5 {[%clk 0:00:54]} 32. Nf5 {[%clk 0:00:50]}  Kh8 {[%clk 0:00:46]} 33. Rc2 {[%clk 0:00:40]}  Bf4 {[%clk 0:00:35]} 34. Rg1 {[%clk 0:00:32]}  Rxg1+ {[%clk 0:00:35]} 35. Qxg1 {[%clk 0:00:21]}  g6 {[%clk 0:00:34]} 36. Ne3 {[%clk 0:00:08]}  Bxh2 {[%clk 0:00:30]} 37. Rxh2 {[%clk 0:00:09]}  Qxf3+ {[%clk 0:00:30]} 38. Ng2 {[%clk 0:00:09]}  Qxe4 {[%clk 0:00:29]} 39. Rh3 {[%clk 0:00:08]}  Qxc4 {[%clk 0:00:26]} 40. Kh2 {[%clk 0:00:07]}  Qxb5 {[%clk 0:00:21]} 41. Qe3 {[%clk 0:00:08]}  Qd7 {[%clk 0:00:20]} 42. Qh6 {[%clk 0:00:08]}  Qg7 {[%clk 0:00:20]} 43. Qg5 {[%clk 0:00:07]}  Kg8 {[%clk 0:00:19]} 44. Rg3 {[%clk 0:00:07]}  Rf5 {[%clk 0:00:19]} 45. Qd2 {[%clk 0:00:05]}  Qf7 {[%clk 0:00:18]} 46. Kg1 {[%clk 0:00:02]}  d5 {[%clk 0:00:17]} 47. Qe2 {[%clk 0:00:02]}  e4 {[%clk 0:00:18]} 48. Ne3 {[%clk 0:00:02]}  Re5 {[%clk 0:00:16]} 49. Ng4 {[%clk 0:00:02]}  Qf4 {[%clk 0:00:12]} 50. Nxe5 {[%clk 0:00:02]}  Qxg3+ {[%clk 0:00:13]} 51. Qg2 {[%clk 0:00:02]}  Qxe5 {[%clk 0:00:13]} 52. Qg4 {[%clk 0:00:02]}  Kg7 {[%clk 0:00:12]} 53. Qd7+ {[%clk 0:00:02]}  Kh6 {[%clk 0:00:13]} 54. Kg2 {[%clk 0:00:02]}  d4 {[%clk 0:00:12]} 55. Qh3+ {[%clk 0:00:02]}  Qh5 {[%clk 0:00:12]} 56. Qe6 {[%clk 0:00:02]}  Qg5+ {[%clk 0:00:13]} 57. Kf1 {[%clk 0:00:02]}  Qf4+ {[%clk 0:00:13]} 58. Ke1 {[%clk 0:00:01]}  e3 {[%clk 0:00:14]} 59. Qh3+ {[%clk 0:00:01]}  Kg5 {[%clk 0:00:13]} 60. Qd7 {[%clk 0:00:02]}  Qf2+ {[%clk 0:00:13]} 61. Kd1 {[%clk 0:00:02]}  Qd2# {[%clk 0:00:14]} 0-1


[Site "https://www.chess.com"]

[Event "Titled Tuesday Blitz March 28 Early 2023"]
[White "Sanchez Alvares, Kelvin Antonio"]
[Black "Valle Maytin, Luis Enrique"]
[WhiteFideId "3906680"]
[BlackFideId "3503666"]
[WhiteElo "2217"]
[BlackElo "2225"]
[Result "1-0"]
[Round "04"]
[TimeControl "180+2"]
[Date "2023.03.28"]
[WhiteClock "0:00:32"]
[BlackClock "0:00:21"]

1. e4 {[%clk 0:03:00]}  c6 {[%clk 0:02:59]} 2. d4 {[%clk 0:01:52]}  d5 {[%clk 0:03:00]} 3. e5 {[%clk 0:01:53]}  c5 {[%clk 0:02:59]} 4. dxc5 {[%clk 0:01:53]}  e6 {[%clk 0:02:59]} 5. Be3 {[%clk 0:01:44]}  Nd7 {[%clk 0:02:58]} 6. Bb5 {[%clk 0:01:40]}  Ne7 {[%clk 0:02:50]} 7. c3 {[%clk 0:01:39]}  Nc6 {[%clk 0:02:51]} 8. Nf3 {[%clk 0:01:35]}  Bxc5 {[%clk 0:02:44]} 9. Bxc5 {[%clk 0:01:34]}  Nxc5 {[%clk 0:02:45]} 10. O-O {[%clk 0:01:34]}  O-O {[%clk 0:02:44]} 11. Nbd2 {[%clk 0:01:34]}  a6 {[%clk 0:02:44]} 12. Be2 {[%clk 0:01:33]}  b5 {[%clk 0:02:39]} 13. Nb3 {[%clk 0:01:33]}  Na4 {[%clk 0:02:36]} 14. Qd2 {[%clk 0:01:32]}  Bb7 {[%clk 0:02:35]} 15. Nbd4 {[%clk 0:01:32]}  Nc5 {[%clk 0:02:26]} 16. Bd3 {[%clk 0:01:29]}  h6 {[%clk 0:02:21]} 17. Rae1 {[%clk 0:01:26]}  Qc7 {[%clk 0:02:20]} 18. Bb1 {[%clk 0:01:25]}  Nxd4 {[%clk 0:02:15]} 19. Nxd4 {[%clk 0:01:24]}  Ne4 {[%clk 0:02:15]} 20. Qe3 {[%clk 0:01:24]}  Rac8 {[%clk 0:02:02]} 21. f3 {[%clk 0:01:24]}  Nc5 {[%clk 0:02:02]} 22. Kh1 {[%clk 0:01:21]}  Na4 {[%clk 0:01:59]} 23. Qd2 {[%clk 0:01:19]}  Nb6 {[%clk 0:01:58]} 24. f4 {[%clk 0:01:16]}  Nc4 {[%clk 0:01:58]} 25. Qf2 {[%clk 0:01:11]}  Qc5 {[%clk 0:01:14]} 26. Qc2 {[%clk 0:01:04]}  g6 {[%clk 0:01:09]} 27. Nxe6 {[%clk 0:01:04]}  Qe7 {[%clk 0:01:03]} 28. Nxf8 {[%clk 0:01:02]}  Rxf8 {[%clk 0:01:03]} 29. f5 {[%clk 0:01:00]}  d4 {[%clk 0:00:55]} 30. cxd4 {[%clk 0:00:58]}  Qg5 {[%clk 0:00:53]} 31. fxg6 {[%clk 0:00:55]}  f5 {[%clk 0:00:48]} 32. exf6 {[%clk 0:00:45]}  Ne3 {[%clk 0:00:41]} 33. Rxe3 {[%clk 0:00:41]}  Qxe3 {[%clk 0:00:39]} 34. g7 {[%clk 0:00:40]}  Bxg2+ {[%clk 0:00:28]} 35. Qxg2 {[%clk 0:00:35]}  Rxf6 {[%clk 0:00:23]} 36. Bh7+ {[%clk 0:00:32]}  Kxh7 {[%clk 0:00:21]} 37. g8=Q# {[%clk 0:00:32]} 1-0


[Site "https://www.chess.com"]

[Event "Titled Tuesday Blitz March 28 Early 2023"]
[White "Avazkhonov, Alikhon"]
[Black "Lehtosaari, Mauri"]
[WhiteFideId "14208504"]
[BlackFideId "501999"]
[WhiteElo "1739"]
[BlackElo "2508"]
[Result "0-1"]
[Round "04"]
[TimeControl "180+2"]
[Date "2023.03.28"]
[WhiteClock "0:00:16"]
[BlackClock "0:00:28"]

1. d4 {[%clk 0:03:00]}  d5 {[%clk 0:02:51]} 2. c4 {[%clk 0:03:01]}  c6 {[%clk 0:02:51]} 3. Nc3 {[%clk 0:03:01]}  Nf6 {[%clk 0:02:51]} 4. Nf3 {[%clk 0:03:01]}  dxc4 {[%clk 0:02:50]} 5. a4 {[%clk 0:03:00]}  Bf5 {[%clk 0:02:50]} 6. Ne5 {[%clk 0:03:00]}  Nbd7 {[%clk 0:02:47]} 7. Nxc4 {[%clk 0:03:01]}  Nb6 {[%clk 0:02:42]} 8. Ne5 {[%clk 0:03:00]}  a5 {[%clk 0:02:43]} 9. f3 {[%clk 0:03:00]}  Nfd7 {[%clk 0:02:33]} 10. e4 {[%clk 0:02:31]}  Nxe5 {[%clk 0:01:49]} 11. exf5 {[%clk 0:02:31]}  Ned7 {[%clk 0:01:46]} 12. d5 {[%clk 0:02:30]}  Nf6 {[%clk 0:01:42]} 13. dxc6 {[%clk 0:02:30]}  Qxd1+ {[%clk 0:01:41]} 14. Nxd1 {[%clk 0:02:29]}  bxc6 {[%clk 0:01:42]} 15. Be3 {[%clk 0:02:26]}  Nfd5 {[%clk 0:01:40]} 16. Bd4 {[%clk 0:02:21]}  Rg8 {[%clk 0:01:26]} 17. Nc3 {[%clk 0:02:06]}  g6 {[%clk 0:01:19]} 18. Nxd5 {[%clk 0:02:01]}  Nxd5 {[%clk 0:01:18]} 19. fxg6 {[%clk 0:01:54]}  hxg6 {[%clk 0:01:11]} 20. g3 {[%clk 0:01:54]}  e6 {[%clk 0:00:51]} 21. f4 {[%clk 0:01:51]}  Bb4+ {[%clk 0:00:49]} 22. Kf2 {[%clk 0:01:50]}  Ke7 {[%clk 0:00:49]} 23. Bg2 {[%clk 0:01:50]}  Rgd8 {[%clk 0:00:48]} 24. Rhd1 {[%clk 0:01:46]}  Rab8 {[%clk 0:00:49]} 25. Rac1 {[%clk 0:01:36]}  Rdc8 {[%clk 0:00:48]} 26. Kg1 {[%clk 0:01:35]}  Bd6 {[%clk 0:00:48]} 27. Rd2 {[%clk 0:01:29]}  Rb4 {[%clk 0:00:46]} 28. Bxd5 {[%clk 0:00:49]}  exd5 {[%clk 0:00:47]} 29. Bc5 {[%clk 0:00:49]}  Rxa4 {[%clk 0:00:42]} 30. Rxd5 {[%clk 0:00:49]}  cxd5 {[%clk 0:00:39]} 31. Bxd6+ {[%clk 0:00:41]}  Kd7 {[%clk 0:00:39]} 32. Rxc8 {[%clk 0:00:40]}  Kxc8 {[%clk 0:00:39]} 33. Be5 {[%clk 0:00:39]}  Re4 {[%clk 0:00:37]} 34. Bc3 {[%clk 0:00:29]}  Re2 {[%clk 0:00:32]} 35. Bxa5 {[%clk 0:00:23]}  Rxb2 {[%clk 0:00:32]} 36. Bc3 {[%clk 0:00:23]}  Rc2 {[%clk 0:00:32]} 37. Bd4 {[%clk 0:00:24]}  Kd7 {[%clk 0:00:32]} 38. h4 {[%clk 0:00:21]}  f5 {[%clk 0:00:29]} 39. Kf1 {[%clk 0:00:19]}  Kc6 {[%clk 0:00:28]} 40. Ke1 {[%clk 0:00:16]}  Kb5 {[%clk 0:00:28]} 0-1


[Site "https://www.chess.com"]

[Event "Titled Tuesday Blitz March 28 Early 2023"]
[White "Osinenko, Anton"]
[Black "Silva Lucena, Cristian"]
[WhiteFideId "4158970"]
[BlackFideId "2232588"]
[WhiteElo "2294"]
[BlackElo "2223"]
[Result "0-1"]
[Round "04"]
[TimeControl "180+2"]
[Date "2023.03.28"]
[WhiteClock "0:00:05"]
[BlackClock "0:00:15"]

1. e4 {[%clk 0:03:00]}  c5 {[%clk 0:02:59]} 2. Nf3 {[%clk 0:02:59]}  e6 {[%clk 0:02:59]} 3. c3 {[%clk 0:02:59]}  Nf6 {[%clk 0:02:58]} 4. e5 {[%clk 0:02:59]}  Nd5 {[%clk 0:02:59]} 5. d4 {[%clk 0:03:00]}  cxd4 {[%clk 0:02:59]} 6. Bc4 {[%clk 0:03:01]}  b6 {[%clk 0:02:56]} 7. cxd4 {[%clk 0:02:52]}  Ba6 {[%clk 0:02:51]} 8. Bxa6 {[%clk 0:02:50]}  Nxa6 {[%clk 0:02:51]} 9. O-O {[%clk 0:02:51]}  Be7 {[%clk 0:02:51]} 10. Nbd2 {[%clk 0:02:50]}  O-O {[%clk 0:02:50]} 11. Ne4 {[%clk 0:02:50]}  f5 {[%clk 0:02:48]} 12. Ng3 {[%clk 0:02:46]}  Rc8 {[%clk 0:02:25]} 13. a3 {[%clk 0:02:46]}  Nac7 {[%clk 0:02:22]} 14. Bd2 {[%clk 0:02:44]}  Nb5 {[%clk 0:02:20]} 15. Rc1 {[%clk 0:02:44]}  a5 {[%clk 0:02:01]} 16. Qb3 {[%clk 0:02:42]}  Na7 {[%clk 0:01:56]} 17. Rxc8 {[%clk 0:02:36]}  Qxc8 {[%clk 0:01:56]} 18. Rc1 {[%clk 0:02:37]}  Qb7 {[%clk 0:01:56]} 19. Ne2 {[%clk 0:02:35]}  Nc6 {[%clk 0:01:46]} 20. Ne1 {[%clk 0:02:27]}  Qa6 {[%clk 0:01:45]} 21. Qd3 {[%clk 0:02:24]}  b5 {[%clk 0:01:41]} 22. Nc2 {[%clk 0:02:17]}  Qb6 {[%clk 0:01:38]} 23. Ne3 {[%clk 0:02:15]}  Nxe3 {[%clk 0:01:34]} 24. Bxe3 {[%clk 0:02:16]}  b4 {[%clk 0:01:29]} 25. f4 {[%clk 0:01:50]}  Qb7 {[%clk 0:01:13]} 26. d5 {[%clk 0:01:47]}  Nb8 {[%clk 0:01:04]} 27. d6 {[%clk 0:01:46]}  Bd8 {[%clk 0:01:04]} 28. a4 {[%clk 0:01:39]}  Bb6 {[%clk 0:01:03]} 29. Kf2 {[%clk 0:01:30]}  Nc6 {[%clk 0:01:00]} 30. Bxb6 {[%clk 0:01:22]}  Qxb6+ {[%clk 0:01:00]} 31. Qe3 {[%clk 0:01:22]}  Qa6 {[%clk 0:00:56]} 32. b3 {[%clk 0:01:22]}  Rc8 {[%clk 0:00:52]} 33. Qc5 {[%clk 0:01:12]}  Qd3 {[%clk 0:00:46]} 34. Qe3 {[%clk 0:01:12]}  Qa6 {[%clk 0:00:43]} 35. Ke1 {[%clk 0:01:11]}  Kf7 {[%clk 0:00:41]} 36. Kd2 {[%clk 0:01:11]}  h6 {[%clk 0:00:37]} 37. Qd3 {[%clk 0:01:10]}  Qb7 {[%clk 0:00:36]} 38. Qb5 {[%clk 0:01:09]}  Qa7 {[%clk 0:00:34]} 39. Qc5 {[%clk 0:01:01]}  Qa6 {[%clk 0:00:29]} 40. Rc4 {[%clk 0:00:57]}  g5 {[%clk 0:00:28]} 41. g3 {[%clk 0:00:56]}  g4 {[%clk 0:00:27]} 42. Qe3 {[%clk 0:00:52]}  h5 {[%clk 0:00:27]} 43. Kd3 {[%clk 0:00:50]}  Nd8 {[%clk 0:00:23]} 44. Qd4 {[%clk 0:00:48]}  Rc6 {[%clk 0:00:22]} 45. Kc2 {[%clk 0:00:29]}  Nb7 {[%clk 0:00:21]} 46. Kb2 {[%clk 0:00:27]}  h4 {[%clk 0:00:19]} 47. Nc1 {[%clk 0:00:27]}  Rxc4 {[%clk 0:00:18]} 48. bxc4 {[%clk 0:00:26]}  Qc6 {[%clk 0:00:17]} 49. Qd3 {[%clk 0:00:14]}  Nc5 {[%clk 0:00:17]} 50. Qe2 {[%clk 0:00:12]}  Nxa4+ {[%clk 0:00:17]} 51. Kc2 {[%clk 0:00:13]}  Nc5 {[%clk 0:00:18]} 52. h3 {[%clk 0:00:09]}  Qa4+ {[%clk 0:00:16]} 53. Kd2 {[%clk 0:00:09]}  b3 {[%clk 0:00:16]} 54. Ke1 {[%clk 0:00:04]}  Qb4+ {[%clk 0:00:16]} 55. Kf2 {[%clk 0:00:04]}  b2 {[%clk 0:00:16]} 56. hxg4 {[%clk 0:00:05]}  bxc1=Q {[%clk 0:00:15]} 57. gxf5 {[%clk 0:00:05]}  Qcd2 {[%clk 0:00:15]} 0-1


[Site "https://www.chess.com"]

[Event "Titled Tuesday Blitz March 28 Early 2023"]
[White "Petukhov, Dmitry"]
[Black "Boraso, Alessio"]
[WhiteFideId "4142748"]
[BlackFideId "848077"]
[WhiteElo "2311"]
[BlackElo "2286"]
[Result "0-1"]
[Round "04"]
[TimeControl "180+2"]
[Date "2023.03.28"]
[WhiteClock "0:01:30"]
[BlackClock "0:00:37"]

1. e4 {[%clk 0:02:59]}  c5 {[%clk 0:03:00]} 2. c3 {[%clk 0:02:59]}  d5 {[%clk 0:02:59]} 3. exd5 {[%clk 0:03:00]}  Qxd5 {[%clk 0:03:00]} 4. d4 {[%clk 0:03:01]}  Nc6 {[%clk 0:03:01]} 5. Nf3 {[%clk 0:03:01]}  e5 {[%clk 0:03:01]} 6. Bb5 {[%clk 0:03:01]}  cxd4 {[%clk 0:02:57]} 7. Qe2 {[%clk 0:03:01]}  Bd6 {[%clk 0:02:47]} 8. cxd4 {[%clk 0:03:00]}  Bg4 {[%clk 0:02:21]} 9. Nc3 {[%clk 0:02:51]}  Bxf3 {[%clk 0:02:17]} 10. gxf3 {[%clk 0:02:36]}  Qxd4 {[%clk 0:02:07]} 11. O-O {[%clk 0:02:36]}  Qh4 {[%clk 0:01:49]} 12. f4 {[%clk 0:02:30]}  Ne7 {[%clk 0:01:34]} 13. fxe5 {[%clk 0:02:24]}  Bc7 {[%clk 0:01:32]} 14. Kh1 {[%clk 0:02:16]}  O-O {[%clk 0:01:29]} 15. f4 {[%clk 0:02:14]}  Nf5 {[%clk 0:01:26]} 16. Rg1 {[%clk 0:02:13]}  Bb6 {[%clk 0:01:12]} 17. Rg4 {[%clk 0:02:09]}  Qh5 {[%clk 0:01:12]} 18. Bd2 {[%clk 0:02:03]}  Rad8 {[%clk 0:01:01]} 19. Bxc6 {[%clk 0:01:57]}  bxc6 {[%clk 0:00:53]} 20. Ne4 {[%clk 0:01:40]}  Rxd2 {[%clk 0:00:52]} 21. Nxd2 {[%clk 0:01:40]}  Ng3+ {[%clk 0:00:52]} 22. Rxg3 {[%clk 0:01:39]}  Qxe2 {[%clk 0:00:51]} 23. Rg2 {[%clk 0:01:40]}  Qd3 {[%clk 0:00:48]} 24. Rc1 {[%clk 0:01:38]}  Qd5 {[%clk 0:00:48]} 25. h3 {[%clk 0:01:33]}  Rd8 {[%clk 0:00:48]} 26. Kh2 {[%clk 0:01:34]}  Be3 {[%clk 0:00:37]} 27. Rc2 {[%clk 0:01:33]}  Bxd2 {[%clk 0:00:36]} 28. Rgxd2 {[%clk 0:01:30]}  Qxd2+ {[%clk 0:00:37]} 29. Rxd2 {[%clk 0:01:30]}  Rxd2+ {[%clk 0:00:37]} 0-1


[Site "https://www.chess.com"]